fUST/lending_fUST_20250530
["ID","MTS","AMOUNT","RATE_DAILY","PERIOD"]
[363179108,1748615440125,-138.67928754,0.00019178,2]
[363179136,1748615440578,-1113.34856747,0.00019178,2]
[363179139,1748615440589,-300.0,0.00019178,2]
[363179141,1748615440601,-1061.84214499,0.00019178,2]
[363179143,1748615440612,-373.94774497,0.00019178,2]
[363179145,1748615440623,-56.05225503,0.00019178,2]
[363179147,1748615440633,-151.0,0.00019178,2]
[363179149,1748615440644,-430.0,0.00019178,2]
[363179151,1748615440653,-430.0,0.00019178,2]
[363179153,1748615440663,-588.50688368,0.00019178,2]
[363179155,1748615440672,-430.0,0.00019178,2]
[363179157,1748615440682,-1285.76661813,0.00019178,2]
[363179578,1748615445380,-501.4759653,0.00018178,2]
[363179584,1748615446462,-5109.6744215,0.00018178,2]
[363179585,1748615446472,-300.0,0.00019176,2]
[363179586,1748615446482,-500.0,0.00019177,2]
[363179587,1748615446492,-525.00150305,0.00019177,2]
[363179588,1748615446502,-248.61890634,0.00019177,2]
[363179589,1748615446511,-2922.97338187,0.00019178,2]
[363179590,1748615446521,-504.49,0.00019178,2]
[363179591,1748615446531,-430.0,0.00019178,2]
[363179592,1748615446540,-430.0,0.00019178,2]
[363179593,1748615446550,-3468.69,0.00019178,2]
[363179594,1748615446559,-812.2,0.00019178,2]
[363179595,1748615446574,-1034.51,0.00019178,2]
[363179596,1748615446583,-734.72,0.00019178,2]
[363179597,1748615446593,-2470.10084242,0.00019178,2]
[363179673,1748615447892,-1124.62529408,0.00019,2]
[363179674,1748615447904,-297.37305128,0.00019,2]
[363179691,1748615531864,-300.0,0.00017032,2]
[363179692,1748615531888,-14021.0,0.00017033,2]
[363179716,1748616052387,151.0,0.000154,2]
[363179721,1748616410515,421.69685,0.00013699,2]
[363179724,1748616436135,-1919.47322893,0.00016357,2]
[363179725,1748616443147,-1698.66433573,0.00016357,2]
[363179743,1748616550101,-1.93233536,0.00016357,2]
[363179744,1748616550123,-282.23238649,0.00016522,2]
[363179745,1748616550143,-169.3394319,0.00016522,2]
[363179746,1748616550165,-1200.0,0.00017031,2]
[363179747,1748616550190,-300.0,0.00017032,2]
[363179748,1748616550210,-300.0,0.00017032,2]
[363179749,1748616550233,-300.0,0.00017032,2]
[363179750,1748616550255,-300.0,0.00017032,2]
[363179751,1748616550276,-10879.0,0.00017033,2]
[363179752,1748616550296,-500.2301585,0.00017076,2]
[363179753,1748616550317,-5000.0,0.00017616,2]
[363179754,1748616550338,-474.507541,0.00017704,2]
[363179755,1748616550361,-616.73769788,0.00017704,2]
[363179756,1748616551108,-452.54227812,0.00017704,2]
[363179757,1748616551130,-26.07924303,0.00018,2]
[363179785,1748616632447,-156.87075697,0.00018,2]
[363179787,1748616632456,-420.0,0.00018602,2]
[363179789,1748616632465,-160.0,0.0001879,2]
[363179791,1748616632475,-728.4905794,0.00018849,2]
[363179793,1748616632484,-300.0,0.00018892,2]
[363179795,1748616632494,-1200.0,0.00018892,2]
[363179797,1748616632503,-170.16787995,0.000189,2]
[363179799,1748616632512,-78.00165464,0.00019,2]
[363179801,1748616632522,-1657.63390483,0.00019078,2]
[363179803,1748616632531,-181.9,0.00019107,2]
[363179805,1748616632540,-181.9,0.00019107,2]
[363179807,1748616632550,-181.9,0.00019107,2]
[363179809,1748616632559,-181.9,0.00019107,2]
[363179811,1748616632568,-181.9,0.00019107,2]
[363179813,1748616632578,-181.9,0.00019107,2]
[363179815,1748616632587,-164.95,0.00019168,3]
[363179817,1748616632597,-500.0,0.00019172,2]
[363179819,1748616632606,-500.0,0.00019172,2]
[363179821,1748616632615,-309.38500139,0.00019172,2]
[363179823,1748616632624,-500.0,0.00019172,2]
[363179825,1748616632634,-500.0,0.00019172,2]
[363179827,1748616632643,-500.0,0.00019172,2]
[363179829,1748616632653,-500.0,0.00019172,2]
[363179831,1748616632662,-500.0,0.00019172,2]
[363179833,1748616632671,-500.0,0.00019172,2]
[363179835,1748616632680,-500.0,0.00019172,2]
[363179836,1748616632689,-500.0,0.00019172,2]
[363179837,1748616632699,-500.0,0.00019172,2]
[363179838,1748616632708,-500.0,0.00019172,2]
[363179839,1748616632717,-633.20605249,0.00019172,2]
[363179840,1748616632727,-500.0,0.00019172,2]
[363179841,1748616632735,-500.0,0.00019173,2]
[363179842,1748616632744,-210.2462923,0.00019173,2]
[363179843,1748616632754,-500.0,0.00019173,2]
[363179844,1748616632763,-500.0,0.00019173,2]
[363179845,1748616632771,-500.0,0.00019173,2]
[363179846,1748616632781,-500.0,0.00019173,2]
[363179847,1748616632790,-439.87152093,0.00019173,2]
[363179848,1748616632806,-60.12847907,0.00019173,2]
[363179849,1748616632815,-500.0,0.00019173,2]
[363179850,1748616632824,-500.0,0.00019173,2]
[363179851,1748616632833,-18.87152093,0.00019173,2]
[363179852,1748616632844,-481.12847907,0.00019173,2]
[363179853,1748616632854,-152.64344538,0.00019173,2]
[363179999,1748616638563,-367.65937497,0.00019173,2]
[363180001,1748616638572,-500.0,0.00019173,2]
[363180003,1748616638582,-500.0,0.00019173,2]
[363180005,1748616638591,-500.0,0.00019173,2]
[363180007,1748616638601,-500.0,0.00019173,2]
[363180009,1748616638610,-500.0,0.00019173,2]
[363180011,1748616638620,-500.0,0.00019173,2]
[363180013,1748616638629,-160.15275943,0.00019173,2]
[363180015,1748616638638,-444.58726838,0.00019173,2]
[363180851,1748616646702,-0.08383572,0.00019172,2]
[363183427,1748616913286,1288.5680137,0.00024,120]
[363183428,1748616947733,-432.0,0.00016,2]
[363184098,1748617518938,-5000.0,0.0001584,2]
[363184099,1748617518965,-6094.0,0.00016,2]
[363184100,1748617518993,-2927.0,0.000164,2]
[363184101,1748617587255,-875.67550292,0.000164,2]
[363184102,1748617587278,-4363.32449708,0.00016733,2]
[363184103,1748617641121,-178.65744111,0.00016565,2]
[363184104,1748617654129,-565.24490648,0.00016565,2]
[363184105,1748617745096,-3879.41280686,0.00016565,2]
[363184106,1748617751113,-376.68484555,0.00016565,2]
[363184107,1748617751135,-371.34938192,0.00016632,2]
[363184108,1748617751156,-300.0,0.00016732,2]
[363184109,1748617751177,-20536.67550292,0.00016733,2]
[363184110,1748617751198,-300.0,0.00017069,2]
[363184111,1748617751218,-237.25377,0.00017076,2]
[363184112,1748617751239,-390.5744455,0.00017076,2]
[363184113,1748617753121,-511.9995651,0.00017076,2]
[363184114,1748617753144,-300.0,0.00017599,2]
[363184115,1748617753167,-500.0,0.00017899,2]
[363184116,1748617753191,-500.0,0.00017899,2]
[363184117,1748617753214,-540.75329318,0.00017899,2]
[363184118,1748617753238,-500.0,0.00017899,2]
[363184119,1748617753264,-500.0,0.00017899,2]
[363184120,1748617753287,-500.0,0.00017899,2]
[363184121,1748617753311,-500.0,0.00017899,2]
[363184122,1748617753336,-500.0,0.00017899,2]
[363184123,1748617753362,-570.70764906,0.00017899,2]
[363184124,1748617753391,-6411.94058234,0.000179,2]
[363184125,1748617753421,-6031.23020678,0.00018141,2]
[363184135,1748617832869,-247.95648418,0.00018524,2]
[363184136,1748617832878,-252.04351582,0.00018546,2]
[363184148,1748617838653,-1769.39952726,0.00018361,2]
[363184149,1748617838662,-47.95648418,0.00018546,2]
[363184150,1748617838671,-300.0,0.00018546,2]
[363184151,1748617838681,-207.4,0.00018547,2]
[363184152,1748617838692,-151.0,0.00018599,2]
[363184153,1748617838702,-261.830002,0.000186,2]
[363184154,1748617838712,-396.74529434,0.00018623,2]
[363184155,1748617838722,-1003.50101342,0.00018624,3]
[363184156,1748617838734,-1177.55762713,0.00018624,3]
[363184157,1748617838746,-6418.18333801,0.00018624,3]
[363184158,1748617838913,-2088.80395696,0.00018624,2]
[363184159,1748617838929,-999.67,0.00018624,2]
[363184160,1748617838951,-48142.23015905,0.00018624,2]
[363184161,1748617838961,-12000.0,0.0001866,2]
[363184162,1748617838970,-1048.36,0.00018793,2]
[363184163,1748617838979,-1758.556141,0.00018794,2]
[363184164,1748617838989,-364.2452897,0.00018795,2]
[363184165,1748617838998,-364.2452897,0.00018795,2]
[363184166,1748617839007,-364.2452897,0.000188,2]
[363184167,1748617839016,-151.0,0.00018831,2]
[363184168,1748617839026,-151.0,0.00018831,2]
[363184169,1748617839035,-325.644775,0.00018831,2]
[363184170,1748617839044,-325.644775,0.00018831,2]
[363184171,1748617839054,-470.474851,0.00018831,2]
[363184172,1748617839063,-470.474851,0.00018831,2]
[363184173,1748617839073,-572.1885402,0.00018849,2]
[363184174,1748617839083,-570.6883372,0.00018849,2]
[363184175,1748617839092,-5997.16822249,0.000189,2]
[363184176,1748617839101,-69925.01852611,0.00018986,2]
[363184177,1748617839111,-5000.0,0.00018989,2]
[363184178,1748617839120,-200.59691172,0.00018989,2]
[363184179,1748617839129,-1326.10712384,0.00018995,2]
[363184180,1748617839140,-500.0,0.00018998,2]
[363184181,1748617839149,-825.96118873,0.00018998,2]
[363184182,1748617839158,-825.96118873,0.00018998,2]
[363184183,1748617839167,-162.75835791,0.00018998,2]
[363184184,1748617839179,-825.96118873,0.00018998,2]
[363184185,1748617839189,-500.0,0.00018998,2]
[363184186,1748617839199,-825.96118873,0.00018998,2]
[363184187,1748617839208,-825.96118873,0.00018998,2]
[363184188,1748617839217,-825.96118873,0.00018998,2]
[363184189,1748617839227,-825.96118873,0.00018998,2]
[363184190,1748617839237,-825.96118873,0.00018998,2]
[363184191,1748617839246,-500.0,0.00018998,2]
[363184192,1748617839256,-825.96118873,0.00018998,2]
[363184193,1748617839266,-500.0,0.00018998,2]
[363184194,1748617839275,-825.96118873,0.00018998,2]
[363184195,1748617839285,-825.96118873,0.00018998,2]
[363184196,1748617839295,-825.96118873,0.00018998,2]
[363184197,1748617839304,-825.96118873,0.00018998,2]
[363184198,1748617839314,-825.96118873,0.00018998,2]
[363184199,1748617839323,-825.96118873,0.00018998,2]
[363184200,1748617839333,-825.96118873,0.00018998,2]
[363184201,1748617839341,-500.0,0.00018999,2]
[363184202,1748617839350,-301884.8290985,0.00019,2]
[363184203,1748617839360,-151.0,0.00019,2]
[363184204,1748617839373,-151.0,0.00019,2]
[363184205,1748617839383,-325.644775,0.00019,2]
[363184206,1748617839393,-325.644775,0.00019,2]
[363184207,1748617839403,-470.474851,0.00019,2]
[363184208,1748617839412,-470.474851,0.00019,2]
[363184209,1748617839421,-151.0,0.00019,2]
[363184210,1748617839431,-151.0,0.00019,2]
[363184211,1748617839442,-151.0,0.00019,2]
[363184212,1748617839452,-168.21129388,0.00019078,2]
[363184213,1748617839462,-1326.10712383,0.00019084,2]
[363184214,1748617839472,-3000.0,0.000191,2]
[363184215,1748617839481,-572.1885402,0.000191,2]
[363184216,1748617839491,-5997.16822249,0.00019107,2]
[363184217,1748617839501,-296.041881,0.00019107,2]
[363184218,1748617839511,-3000.0,0.0001911,2]
[363184219,1748617839521,-3000.0,0.0001912,2]
[363184220,1748617839531,-3000.0,0.0001913,2]
[363184221,1748617839541,-3000.0,0.0001914,2]
[363184222,1748617839550,-151.0,0.0001914,2]
[363184223,1748617839560,-151.0,0.0001914,2]
[363184224,1748617839570,-325.644775,0.0001914,2]
[363184225,1748617839579,-325.644775,0.0001914,2]
[363184226,1748617839589,-470.474851,0.0001914,2]
[363184227,1748617839598,-470.474851,0.0001914,2]
[363184228,1748617839608,-151.0,0.0001914,2]
[363184229,1748617839617,-151.0,0.0001914,2]
[363184230,1748617839627,-151.0,0.00019149,2]
[363184231,1748617839636,-151.0,0.00019149,2]
[363184232,1748617839646,-151.0,0.00019149,2]
[363184233,1748617839655,-151.0,0.00019149,2]
[363184234,1748617839664,-151.0,0.00019149,2]
[363184235,1748617839673,-151.0,0.00019149,2]
[363184236,1748617839682,-224.82772,0.00019149,2]
[363184237,1748617839693,-2768.132077,0.00019149,2]
[363184238,1748617839702,-151.0,0.00019149,2]
[363184239,1748617839711,-2768.132077,0.00019149,2]
[363184240,1748617839721,-288.570512,0.00019149,2]
[363184241,1748617839731,-163.860256,0.00019149,2]
[363184242,1748617839740,-163.860256,0.00019149,2]
[363184243,1748617839750,-151.0,0.00019149,2]
[363184244,1748617839759,-230.669102,0.00019149,2]
[363184245,1748617839769,-230.669102,0.00019149,2]
[363184246,1748617839778,-151.0,0.00019149,2]
[363184247,1748617839788,-151.0,0.00019149,2]
[363184248,1748617839797,-623.331243,0.00019149,2]
[363184249,1748617839807,-623.331243,0.00019149,2]
[363184250,1748617839816,-151.0,0.00019149,2]
[363184251,1748617839826,-151.0,0.00019149,2]
[363184252,1748617839835,-165.593743,0.00019149,2]
[363184253,1748617839845,-165.593743,0.00019149,2]
[363184254,1748617839854,-5325.811402,0.0001915,2]
[363184255,1748617839863,-151.0,0.0001915,2]
[363184256,1748617839874,-151.0,0.0001915,2]
[363184257,1748617839883,-151.0,0.0001915,2]
[363184258,1748617839893,-151.0,0.0001915,2]
[363184259,1748617839902,-151.0,0.00019167,2]
[363184260,1748617839911,-230.669102,0.00019167,2]
[363184261,1748617839921,-230.669102,0.00019167,2]
[363184262,1748617839930,-151.0,0.00019167,2]
[363184263,1748617839939,-151.0,0.00019167,2]
[363184264,1748617839949,-623.331243,0.00019167,2]
[363184265,1748617839959,-623.331243,0.00019167,2]
[363184266,1748617839969,-151.0,0.00019167,2]
[363184267,1748617839978,-151.0,0.00019167,2]
[363184268,1748617839987,-165.593743,0.00019167,2]
[363184269,1748617839997,-165.593743,0.00019167,2]
[363184270,1748617840006,-300.221011,0.00019172,2]
[363184271,1748617840016,-300.221011,0.00019172,2]
[363184272,1748617840025,-230.38218,0.00019172,2]
[363184273,1748617840035,-230.38218,0.00019172,2]
[363184274,1748617840045,-152.491781,0.00019172,2]
[363184275,1748617840054,-152.622628,0.00019172,2]
[363184276,1748617840064,-151.0,0.00019172,2]
[363184277,1748617840073,-151.0,0.00019172,2]
[363184278,1748617840082,-151.0,0.00019172,2]
[363184279,1748617840092,-2768.132077,0.00019172,2]
[363184280,1748617840101,-2768.132077,0.00019172,2]
[363184281,1748617840111,-163.860256,0.00019172,2]
[363184282,1748617840120,-163.860256,0.00019172,2]
[363184283,1748617840130,-164.695509,0.00019172,2]
[363184284,1748617840140,-500.0,0.00019173,2]
[363184285,1748617840149,-503.26187206,0.00019173,2]
[363184286,1748617840159,-500.0,0.00019173,2]
[363184287,1748617840169,-206.08923678,0.00019173,2]
[363184288,1748617840182,-293.91076322,0.00019173,2]
[363184289,1748617840192,-43.99884459,0.00019173,2]
[363184304,1748617840995,-456.00115541,0.00019173,2]
[363184305,1748617841005,-500.0,0.00019173,2]
[363184306,1748617841015,-500.0,0.00019173,2]
[363184307,1748617841024,-501.8360678,0.00019173,2]
[363184309,1748617841034,-500.0,0.00019173,2]
[363184311,1748617841043,-209.14049426,0.00019173,2]
[363184313,1748617841052,-500.0,0.00019173,2]
[363184314,1748617841062,-535.19813433,0.00019173,2]
[363184315,1748617841071,-500.0,0.00019173,2]
[363184316,1748617841081,-500.0,0.00019173,2]
[363184317,1748617841091,-360.31510814,0.00019173,2]
[363184318,1748617841100,-500.0,0.00019173,2]
[363184319,1748617841110,-500.0,0.00019173,2]
[363184320,1748617841119,-500.0,0.00019173,2]
[363184321,1748617841129,-500.0,0.00019173,2]
[363184322,1748617841138,-372.48068192,0.00019173,2]
[363184323,1748617841148,-500.0,0.00019173,2]
[363184324,1748617841158,-500.0,0.00019173,2]
[363184325,1748617841168,-500.0,0.00019173,2]
[363184326,1748617841178,-500.0,0.00019173,2]
[363184327,1748617841187,-500.0,0.00019173,2]
[363184328,1748617841198,-500.0,0.00019173,2]
[363184329,1748617841208,-500.0,0.00019173,2]
[363184330,1748617841217,-500.0,0.00019173,2]
[363184331,1748617841227,-500.0,0.00019173,2]
[363184332,1748617841237,-500.0,0.00019173,2]
[363184333,1748617841247,-500.0,0.00019173,2]
[363184334,1748617841256,-500.0,0.00019173,2]
[363184335,1748617841266,-500.0,0.00019173,2]
[363184336,1748617841275,-500.0,0.00019173,2]
[363184337,1748617841285,-500.0,0.00019173,2]
[363184338,1748617841295,-500.0,0.00019173,2]
[363184339,1748617841305,-505.97416407,0.00019173,2]
[363184340,1748617841315,-500.0,0.00019173,2]
[363184341,1748617841325,-500.0,0.00019173,2]
[363184342,1748617841336,-500.0,0.00019173,2]
[363184343,1748617841346,-500.0,0.00019173,2]
[363184344,1748617841356,-153.38429643,0.00019173,2]
[363184345,1748617841370,-500.0,0.00019173,2]
[363184346,1748617841380,-500.55241831,0.00019173,2]
[363184347,1748617841389,-503.63052869,0.00019173,2]
[363184348,1748617841399,-500.0,0.00019173,2]
[363184349,1748617841409,-500.0,0.00019173,2]
[363184350,1748617841420,-475.48695063,0.00019173,2]
[363184351,1748617841432,-27.14451342,0.00019173,2]
[363184352,1748617841444,-500.0,0.00019173,2]
[363184353,1748617841454,-164.54060586,0.00019173,2]
[363184366,1748617843730,-151.0,0.00018831,2]
[363184368,1748617843740,-274.0415938,0.00018997,2]
[363184395,1748617846959,-62.80498961,0.00018831,2]
[363184396,1748617847024,-0.50593108,0.00018831,2]
[363184407,1748618329058,408.771531,0.00013699,2]
[363184410,1748618347822,155.82367301,6.8e-07,2]
[363184411,1748618347943,155.82367301,6.8e-07,2]
[363184416,1748618648769,155.82367301,6.8e-07,2]
[363184417,1748618648875,155.82367301,6.8e-07,2]
[363184418,1748618649012,155.82367301,6.8e-07,2]
[363184419,1748618649155,155.82367301,6.8e-07,2]
[363184424,1748618833122,-2014.34938192,0.00016402,2]
[363184425,1748618833144,-160.0,0.00016567,2]
[363184426,1748618833166,-1043.0,0.00017074,2]
[363184427,1748618833187,-300.0,0.00017075,2]
[363184428,1748618833208,-300.0,0.00017075,2]
[363184429,1748618833230,-300.0,0.00017075,2]
[363184430,1748618833252,-3284.20284461,0.00017076,2]
[363184431,1748618843151,-413.49559493,0.00017076,2]
[363184440,1748618918382,1347.80684584,0.00015,2]
[363184455,1748618949127,-300.0,0.00017075,2]
[363184456,1748618949148,-4225.74026206,0.00017076,2]
[363184457,1748618949169,-237.2537714,0.00017076,2]
[363184458,1748618949192,-8674.8316723,0.00017076,2]
[363184459,1748618949211,-46.97429424,0.00017076,2]
[363184460,1748618951091,-236.71907126,0.00017076,2]
[363184461,1748618951113,-171.73093877,0.00017212,2]
[363184489,1748619032028,-8.76201923,0.00017212,2]
[363184490,1748619032038,-207.4,0.00018547,2]
[363184491,1748619032048,-373.0,0.00018648,2]
[363184492,1748619032057,-362.7564265,0.000187,2]
[363184493,1748619032067,-800.0,0.00018759,2]
[363184494,1748619032076,-1059.57,0.00018776,2]
[363184495,1748619032086,-572.1885403,0.000188,2]
[363184496,1748619032095,-727.2993224,0.000188,2]
[363184497,1748619032105,-800.0,0.00018818,2]
[363184498,1748619032114,-800.0,0.00018822,2]
[363184499,1748619032124,-800.0,0.00018823,2]
[363184500,1748619032133,-87.68907931,0.00018831,2]
[363184501,1748619032142,-320.729989,0.00018831,2]
[363184502,1748619032152,-320.729989,0.00018831,2]
[363184503,1748619032161,-151.0,0.00018831,2]
[363184504,1748619032171,-500.0,0.00018898,2]
[363184505,1748619032180,-500.0,0.00018898,2]
[363184506,1748619032189,-500.0,0.00018898,2]
[363184507,1748619032199,-500.0,0.00018898,2]
[363184508,1748619032210,-500.0,0.00018898,2]
[363184509,1748619032220,-500.0,0.00018898,2]
[363184510,1748619032230,-500.0,0.00018898,2]
[363184511,1748619032240,-500.0,0.00018898,2]
[363184512,1748619032249,-500.0,0.00018898,2]
[363184513,1748619032259,-500.0,0.00018898,2]
[363184514,1748619032269,-500.0,0.00018898,2]
[363184515,1748619032279,-500.0,0.00018898,2]
[363184516,1748619032288,-500.0,0.00018898,2]
[363184517,1748619032298,-500.0,0.00018898,2]
[363184518,1748619032308,-500.0,0.00018898,2]
[363184519,1748619032318,-500.0,0.00018898,2]
[363184520,1748619032327,-500.0,0.00018898,2]
[363184521,1748619032337,-500.0,0.00018898,2]
[363184522,1748619032349,-500.0,0.00018898,2]
[363184523,1748619032359,-500.0,0.00018898,2]
[363184524,1748619032368,-500.0,0.00018898,2]
[363184525,1748619032378,-500.0,0.00018898,2]
[363184526,1748619032388,-500.0,0.00018898,2]
[363184527,1748619032397,-500.0,0.00018898,2]
[363184528,1748619032407,-500.0,0.00018898,2]
[363184529,1748619032417,-500.0,0.00018898,2]
[363184530,1748619032427,-500.0,0.00018898,2]
[363184531,1748619032438,-500.0,0.00018898,2]
[363184532,1748619032448,-500.0,0.00018898,2]
[363184533,1748619032459,-500.0,0.00018898,2]
[363184534,1748619032468,-322.24046256,0.00018898,2]
[363184535,1748619032479,-500.0,0.00018898,2]
[363184536,1748619032489,-500.0,0.00018898,2]
[363184537,1748619032681,-500.0,0.00018898,2]
[363184538,1748619032691,-500.0,0.00018898,2]
[363184539,1748619032700,-500.0,0.00018898,2]
[363184540,1748619032712,-500.0,0.00018898,2]
[363184541,1748619032722,-500.0,0.00018898,2]
[363184542,1748619032732,-500.0,0.00018898,2]
[363184543,1748619032742,-500.0,0.00018898,2]
[363184544,1748619032752,-500.0,0.00018898,2]
[363184545,1748619032762,-500.0,0.00018898,2]
[363184546,1748619032772,-204.928231,0.00018898,2]
[363184547,1748619032786,-500.0,0.00018898,2]
[363184548,1748619032796,-500.0,0.00018898,2]
[363184549,1748619032805,-500.0,0.00018898,2]
[363184550,1748619032815,-500.0,0.00018898,2]
[363184551,1748619032824,-500.0,0.00018898,2]
[363184552,1748619032834,-500.0,0.00018898,2]
[363184553,1748619032844,-953.14296342,0.000189,2]
[363184554,1748619032854,-800.0,0.00018904,2]
[363184555,1748619032864,-800.0,0.00018914,2]
[363184556,1748619032874,-5000.0,0.00018932,2]
[363184557,1748619032884,-800.0,0.00018944,2]
[363184558,1748619032894,-800.0,0.0001896,2]
[363184559,1748619032904,-1670.192589,0.00018995,2]
[363184560,1748619032913,-151.0,0.00019,2]
[363184561,1748619032923,-151.0,0.00019,2]
[363184562,1748619032932,-320.729989,0.00019,2]
[363184563,1748619032942,-320.729989,0.00019,2]
[363184564,1748619032951,-151.0,0.00019,2]
[363184565,1748619032964,-151.0,0.00019,2]
[363184566,1748619032973,-151.0,0.00019,2]
[363184567,1748619032983,-151.0,0.00019,2]
[363184568,1748619032992,-176.414694,0.00019,2]
[363184569,1748619033002,-176.414694,0.00019,2]
[363184570,1748619033011,-800.0,0.00019012,2]
[363184571,1748619033021,-1290.04885538,0.00019078,2]
[363184572,1748619033030,-328.2854918,0.000191,2]
[363184573,1748619033040,-800.0,0.00019119,2]
[363184574,1748619033050,-800.0,0.00019126,2]
[363184575,1748619033059,-151.0,0.0001914,2]
[363184576,1748619033068,-151.0,0.0001914,2]
[363184577,1748619033078,-320.729989,0.0001914,2]
[363184578,1748619033087,-320.729989,0.0001914,2]
[363184579,1748619033097,-158.806229,0.0001914,2]
[363184580,1748619033107,-151.0,0.00019149,2]
[363184581,1748619033116,-151.0,0.00019149,2]
[363184582,1748619033126,-151.0,0.00019149,2]
[363184583,1748619033135,-800.0,0.00019156,2]
[363184584,1748619033145,-800.0,0.00019156,2]
[363184585,1748619033154,-500.0,0.00019173,2]
[363184586,1748619033163,-573.09247553,0.00019173,2]
[363184587,1748619033173,-500.0,0.00019173,2]
[363184588,1748619033183,-500.0,0.00019173,2]
[363184589,1748619033192,-500.0,0.00019173,2]
[363184590,1748619033202,-500.0,0.00019173,2]
[363184591,1748619033214,-507.26848738,0.00019173,2]
[363184592,1748619033226,-500.0,0.00019173,2]
[363184593,1748619033235,-500.0,0.00019173,2]
[363184594,1748619033245,-500.0,0.00019173,2]
[363184595,1748619033255,-500.0,0.00019173,2]
[363184596,1748619033265,-500.0,0.00019173,2]
[363184597,1748619033274,-500.0,0.00019173,2]
[363184598,1748619033284,-500.0,0.00019173,2]
[363184599,1748619033294,-315.33241036,0.00019173,2]
[363184600,1748619033304,-500.0,0.00019173,2]
[363184601,1748619033313,-500.0,0.00019173,2]
[363184602,1748619033323,-500.0,0.00019173,2]
[363184603,1748619033332,-500.0,0.00019173,2]
[363184604,1748619033342,-500.0,0.00019173,2]
[363184605,1748619033352,-500.0,0.00019173,2]
[363184606,1748619033362,-500.0,0.00019173,2]
[363184607,1748619033372,-599.98096962,0.00019173,2]
[363184608,1748619033382,-500.0,0.00019173,2]
[363184609,1748619033392,-500.0,0.00019173,2]
[363184610,1748619033403,-500.0,0.00019173,2]
[363184611,1748619033413,-500.0,0.00019173,2]
[363184612,1748619033424,-500.0,0.00019173,2]
[363184613,1748619033434,-500.0,0.00019173,2]
[363184614,1748619033443,-501.51415023,0.00019173,2]
[363184615,1748619033453,-500.0,0.00019173,2]
[363184616,1748619033465,-500.0,0.00019173,2]
[363184617,1748619033475,-500.0,0.00019173,2]
[363184618,1748619033485,-500.0,0.00019173,2]
[363184619,1748619033495,-500.0,0.00019173,2]
[363184620,1748619033504,-500.0,0.00019173,2]
[363184621,1748619033513,-500.0,0.00019173,2]
[363184622,1748619033523,-158.15086412,0.00019173,2]
[363184623,1748619033532,-500.0,0.00019173,2]
[363184624,1748619033542,-500.0,0.00019173,2]
[363184625,1748619033551,-500.0,0.00019173,2]
[363184626,1748619033561,-238.40602759,0.00019173,2]
[363184627,1748619033571,-500.0,0.00019173,2]
[363184628,1748619033580,-151.0,0.00019173,2]
[363184629,1748619033589,-151.0,0.00019173,2]
[363184630,1748619033600,-151.0,0.00019173,2]
[363184631,1748619033610,-151.0,0.00019173,2]
[363184632,1748619033620,-320.729989,0.00019173,2]
[363184633,1748619033630,-320.729989,0.00019173,2]
[363184634,1748619033639,-151.0,0.00019173,2]
[363184635,1748619033649,-151.0,0.00019173,2]
[363184636,1748619033659,-151.0,0.00019173,2]